{"text_format":"1","workbook":"xlsx","n_sheets":9,"sheets":["Summary","Missing H1 Tag","Missing Title Tags","Missing Meta Description","Missing Meta Keywords","302s","Remaining Urls_1","Spidered Urls_1","Report Data"],"not_rendered":{"charts":5,"images":1,"macros":1,"external_links":0,"defined_names":2,"comments":1,"pivot_tables":0},"unopened":[],"bounds":{"document_bytes":16777216,"sheet_cells":100000,"rows_first":2000,"rows_last":500,"rows_between":2000,"halvings":0,"cell_chars":16384,"cell_head_chars":4096},"cells_cut":0,"cells_raw":0,"read":"whole","date_system":"1900"}

{"sheet":"Summary","index":0,"n_rows":381,"n_cols":11,"rows_kept":381,"cut":false,"hidden":false,"merged":[[41,1,142,1],[160,1,261,1],[279,1,380,1],[41,3,41,7],[160,3,160,7],[279,3,279,7]]}
[]
[]
[null,"Architecture Diagnostic Report (ADR)"]
[null,"Report Period: 08/23/2011"]
[]
[null,"Issue Summary",null,null,null,null,null,null,"Severity Summary"]
[null,"Percentages",null,null,null,"All Issues by Severity",null,null,"Percentages"]
[null,null,null,null,null,"Severity","Count"]
[null,null,null,null,null,"Critical",{"$f":"I143","v":4}]
[null,null,null,null,null,"Warning",{"$f":"I262","v":2}]
[null,null,null,null,null,"Info",{"$f":"I381","v":0}]
[null,null,null,null,null,"Total Issues",{"$f":"SUM(G9:G11)","v":6}]
[]
[]
[]
[]
[]
[]
[null,null,null,null,null,"URL Summary"]
[null,null,null,null,null,"Type","# of URLs"]
[null,null,null,null,null,"Issues",{"$f":"'Report Data'!L8","v":2}]
[null,null,null,null,null,"Non-issues",{"$f":"'Report Data'!L9","v":0}]
[null,null,null,null,null,"Total URLs Crawled",{"$f":"SUM(G21:G22)","v":2}]
[]
[null,"Issue Breakdown by Severity"]
[null,"Critical"]
[]
[]
[]
[]
[]
[]
[]
[]
[]
[]
[]
[]
[]
[]
[]
[null,"CRITICAL","Tab Names","Long Desc",null,null,null,null,"Issue Count","Critical %","Total Issue %"]
[null,null,"Missing H1 Tag","Pages found missing an H1 tag",null,null,null,null,2,{"$f":"I43/$I$143","v":0.5},{"$f":"IF($G$12<>0,I43/$G$12,0)","v":0.33333333333333331}]
[null,null,"Missing Title Tags","Pages found missing a title tag",null,null,null,null,1,{"$f":"I44/$I$143","v":0.25},{"$f":"IF($G$12<>0,I44/$G$12,0)","v":0.16666666666666666}]
[null,null,"Missing Meta Description","Pages found missing a meta description tag",null,null,null,null,1,{"$f":"I45/$I$143","v":0.25},{"$f":"IF($G$12<>0,I45/$G$12,0)","v":0.16666666666666666}]
[null,null,0,{"$error":"#N/A"},null,null,null,null,{"$error":"#N/A"},{"$f":"I46/$I$143","v":{"$error":"#N/A"}},{"$f":"IF($G$12<>0,I46/$G$12,0)","v":{"$error":"#N/A"}}]
[null,null,0,{"$error":"#N/A"},null,null,null,null,{"$error":"#N/A"},{"$error":"#N/A"},{"$error":"#N/A"}]
[null,null,0,{"$error":"#N/A"},null,null,null,null,{"$error":"#N/A"},{"$error":"#N/A"},{"$error":"#N/A"}]
[null,null,0,{"$error":"#N/A"},null,null,null,null,{"$error":"#N/A"},{"$error":"#N/A"},{"$error":"#N/A"}]
[null,null,0,{"$error":"#N/A"},null,null,null,null,{"$error":"#N/A"},{"$error":"#N/A"},{"$error":"#N/A"}]
[null,null,0,{"$error":"#N/A"},null,null,null,null,{"$error":"#N/A"},{"$error":"#N/A"},{"$error":"#N/A"}]
[null,null,0,{"$error":"#N/A"},null,null,null,null,{"$error":"#N/A"},{"$error":"#N/A"},{"$error":"#N/A"}]
[null,null,0,{"$error":"#N/A"},null,null,null,null,{"$error":"#N/A"},{"$error":"#N/A"},{"$error":"#N/A"}]
[null,null,0,{"$error":"#N/A"},null,null,null,null,{"$error":"#N/A"},{"$error":"#N/A"},{"$error":"#N/A"}]
[null,null,0,{"$error":"#N/A"},null,null,null,null,{"$error":"#N/A"},{"$error":"#N/A"},{"$error":"#N/A"}]
[null,null,0,{"$error":"#N/A"},null,null,null,null,{"$error":"#N/A"},{"$error":"#N/A"},{"$error":"#N/A"}]
[null,null,0,{"$error":"#N/A"},null,null,null,null,{"$error":"#N/A"},{"$f":"I57/$I$143","v":{"$error":"#N/A"}},{"$f":"IF($G$12<>0,I57/$G$12,0)","v":{"$error":"#N/A"}}]
[null,null,0,{"$error":"#N/A"},null,null,null,null,{"$error":"#N/A"},{"$error":"#N/A"},{"$error":"#N/A"}]
[null,null,0,{"$error":"#N/A"},null,null,null,null,{"$error":"#N/A"},{"$error":"#N/A"},{"$error":"#N/A"}]
[null,null,0,{"$error":"#N/A"},null,null,null,null,{"$error":"#N/A"},{"$error":"#N/A"},{"$error":"#N/A"}]
[null,null,0,{"$error":"#N/A"},null,null,null,null,{"$error":"#N/A"},{"$error":"#N/A"},{"$error":"#N/A"}]
[null,null,0,{"$error":"#N/A"},null,null,null,null,{"$error":"#N/A"},{"$error":"#N/A"},{"$error":"#N/A"}]
[null,null,0,{"$error":"#N/A"},null,null,null,null,{"$error":"#N/A"},{"$error":"#N/A"},{"$error":"#N/A"}]
[null,null,0,{"$error":"#N/A"},null,null,null,null,{"$error":"#N/A"},{"$error":"#N/A"},{"$error":"#N/A"}]
[null,null,0,{"$error":"#N/A"},null,null,null,null,{"$error":"#N/A"},{"$error":"#N/A"},{"$error":"#N/A"}]
[null,null,0,{"$error":"#N/A"},null,null,null,null,{"$error":"#N/A"},{"$error":"#N/A"},{"$error":"#N/A"}]
[null,null,0,{"$error":"#N/A"},null,null,null,null,{"$error":"#N/A"},{"$error":"#N/A"},{"$error":"#N/A"}]
[null,null,0,{"$error":"#N/A"},null,null,null,null,{"$error":"#N/A"},{"$error":"#N/A"},{"$error":"#N/A"}]
[null,null,0,{"$error":"#N/A"},null,null,null,null,{"$error":"#N/A"},{"$error":"#N/A"},{"$error":"#N/A"}]
[null,null,0,{"$error":"#N/A"},null,null,null,null,{"$error":"#N/A"},{"$error":"#N/A"},{"$error":"#N/A"}]
[null,null,0,{"$error":"#N/A"},null,null,null,null,{"$error":"#N/A"},{"$error":"#N/A"},{"$error":"#N/A"}]
[null,null,0,{"$error":"#N/A"},null,null,null,null,{"$error":"#N/A"},{"$error":"#N/A"},{"$error":"#N/A"}]
[null,null,0,{"$error":"#N/A"},null,null,null,null,{"$error":"#N/A"},{"$error":"#N/A"},{"$error":"#N/A"}]
[null,null,0,{"$error":"#N/A"},null,null,null,null,{"$error":"#N/A"},{"$error":"#N/A"},{"$error":"#N/A"}]
[null,null,0,{"$error":"#N/A"},null,null,null,null,{"$error":"#N/A"},{"$error":"#N/A"},{"$error":"#N/A"}]
[null,null,0,{"$error":"#N/A"},null,null,null,null,{"$error":"#N/A"},{"$error":"#N/A"},{"$error":"#N/A"}]
[null,null,0,{"$error":"#N/A"},null,null,null,null,{"$error":"#N/A"},{"$error":"#N/A"},{"$error":"#N/A"}]
[null,null,0,{"$error":"#N/A"},null,null,null,null,{"$error":"#N/A"},{"$error":"#N/A"},{"$error":"#N/A"}]
[null,null,0,{"$error":"#N/A"},null,null,null,null,{"$error":"#N/A"},{"$error":"#N/A"},{"$error":"#N/A"}]
[null,null,0,{"$error":"#N/A"},null,null,null,null,{"$error":"#N/A"},{"$error":"#N/A"},{"$error":"#N/A"}]
[null,null,0,{"$error":"#N/A"},null,null,null,null,{"$error":"#N/A"},{"$error":"#N/A"},{"$error":"#N/A"}]
[null,null,0,{"$error":"#N/A"},null,null,null,null,{"$error":"#N/A"},{"$error":"#N/A"},{"$error":"#N/A"}]
[null,null,0,{"$error":"#N/A"},null,null,null,null,{"$error":"#N/A"},{"$error":"#N/A"},{"$error":"#N/A"}]
[null,null,0,{"$error":"#N/A"},null,null,null,null,{"$error":"#N/A"},{"$error":"#N/A"},{"$error":"#N/A"}]
[null,null,0,{"$error":"#N/A"},null,null,null,null,{"$error":"#N/A"},{"$error":"#N/A"},{"$error":"#N/A"}]
[null,null,0,{"$error":"#N/A"},null,null,null,null,{"$error":"#N/A"},{"$error":"#N/A"},{"$error":"#N/A"}]
[null,null,0,{"$error":"#N/A"},null,null,null,null,{"$error":"#N/A"},{"$error":"#N/A"},{"$error":"#N/A"}]
[null,null,0,{"$error":"#N/A"},null,null,null,null,{"$error":"#N/A"},{"$error":"#N/A"},{"$error":"#N/A"}]
[null,null,0,{"$error":"#N/A"},null,null,null,null,{"$error":"#N/A"},{"$error":"#N/A"},{"$error":"#N/A"}]
[null,null,0,{"$error":"#N/A"},null,null,null,null,{"$error":"#N/A"},{"$error":"#N/A"},{"$error":"#N/A"}]
[null,null,0,{"$error":"#N/A"},null,null,null,null,{"$error":"#N/A"},{"$error":"#N/A"},{"$error":"#N/A"}]
[null,null,0,{"$error":"#N/A"},null,null,null,null,{"$error":"#N/A"},{"$error":"#N/A"},{"$error":"#N/A"}]
[null,null,0,{"$error":"#N/A"},null,null,null,null,{"$error":"#N/A"},{"$error":"#N/A"},{"$error":"#N/A"}]
[null,null,0,{"$error":"#N/A"},null,null,null,null,{"$error":"#N/A"},{"$error":"#N/A"},{"$error":"#N/A"}]
[null,null,0,{"$error":"#N/A"},null,null,null,null,{"$error":"#N/A"},{"$error":"#N/A"},{"$error":"#N/A"}]
[null,null,0,{"$error":"#N/A"},null,null,null,null,{"$error":"#N/A"},{"$error":"#N/A"},{"$error":"#N/A"}]
[null,null,0,{"$error":"#N/A"},null,null,null,null,{"$error":"#N/A"},{"$error":"#N/A"},{"$error":"#N/A"}]
[null,null,0,{"$error":"#N/A"},null,null,null,null,{"$error":"#N/A"},{"$error":"#N/A"},{"$error":"#N/A"}]
[null,null,0,{"$error":"#N/A"},null,null,null,null,{"$error":"#N/A"},{"$error":"#N/A"},{"$error":"#N/A"}]
[null,null,0,{"$error":"#N/A"},null,null,null,null,{"$error":"#N/A"},{"$error":"#N/A"},{"$error":"#N/A"}]
[null,null,0,{"$error":"#N/A"},null,null,null,null,{"$error":"#N/A"},{"$error":"#N/A"},{"$error":"#N/A"}]
[null,null,0,{"$error":"#N/A"},null,null,null,null,{"$error":"#N/A"},{"$error":"#N/A"},{"$error":"#N/A"}]
[null,null,0,{"$error":"#N/A"},null,null,null,null,{"$error":"#N/A"},{"$error":"#N/A"},{"$error":"#N/A"}]
[null,null,0,{"$error":"#N/A"},null,null,null,null,{"$error":"#N/A"},{"$error":"#N/A"},{"$error":"#N/A"}]
[null,null,0,{"$error":"#N/A"},null,null,null,null,{"$error":"#N/A"},{"$error":"#N/A"},{"$error":"#N/A"}]
[null,null,0,{"$error":"#N/A"},null,null,null,null,{"$error":"#N/A"},{"$error":"#N/A"},{"$error":"#N/A"}]
[null,null,0,{"$error":"#N/A"},null,null,null,null,{"$error":"#N/A"},{"$error":"#N/A"},{"$error":"#N/A"}]
[null,null,0,{"$error":"#N/A"},null,null,null,null,{"$error":"#N/A"},{"$f":"I108/$I$143","v":{"$error":"#N/A"}},{"$f":"IF($G$12<>0,I108/$G$12,0)","v":{"$error":"#N/A"}}]
[null,null,0,{"$error":"#N/A"},null,null,null,null,{"$error":"#N/A"},{"$error":"#N/A"},{"$error":"#N/A"}]
[null,null,0,{"$error":"#N/A"},null,null,null,null,{"$error":"#N/A"},{"$error":"#N/A"},{"$error":"#N/A"}]
[null,null,0,{"$error":"#N/A"},null,null,null,null,{"$error":"#N/A"},{"$error":"#N/A"},{"$error":"#N/A"}]
[null,null,0,{"$error":"#N/A"},null,null,null,null,{"$error":"#N/A"},{"$error":"#N/A"},{"$error":"#N/A"}]
[null,null,0,{"$error":"#N/A"},null,null,null,null,{"$error":"#N/A"},{"$error":"#N/A"},{"$error":"#N/A"}]
[null,null,0,{"$error":"#N/A"},null,null,null,null,{"$error":"#N/A"},{"$error":"#N/A"},{"$error":"#N/A"}]
[null,null,0,{"$error":"#N/A"},null,null,null,null,{"$error":"#N/A"},{"$error":"#N/A"},{"$error":"#N/A"}]
[null,null,0,{"$error":"#N/A"},null,null,null,null,{"$error":"#N/A"},{"$error":"#N/A"},{"$error":"#N/A"}]
[null,null,0,{"$error":"#N/A"},null,null,null,null,{"$error":"#N/A"},{"$error":"#N/A"},{"$error":"#N/A"}]
[null,null,0,{"$error":"#N/A"},null,null,null,null,{"$error":"#N/A"},{"$error":"#N/A"},{"$error":"#N/A"}]
[null,null,0,{"$error":"#N/A"},null,null,null,null,{"$error":"#N/A"},{"$error":"#N/A"},{"$error":"#N/A"}]
[null,null,0,{"$error":"#N/A"},null,null,null,null,{"$error":"#N/A"},{"$error":"#N/A"},{"$error":"#N/A"}]
[null,null,0,{"$error":"#N/A"},null,null,null,null,{"$error":"#N/A"},{"$error":"#N/A"},{"$error":"#N/A"}]
[null,null,0,{"$error":"#N/A"},null,null,null,null,{"$error":"#N/A"},{"$error":"#N/A"},{"$error":"#N/A"}]
[null,null,0,{"$error":"#N/A"},null,null,null,null,{"$error":"#N/A"},{"$error":"#N/A"},{"$error":"#N/A"}]
[null,null,0,{"$error":"#N/A"},null,null,null,null,{"$error":"#N/A"},{"$error":"#N/A"},{"$error":"#N/A"}]
[null,null,0,{"$error":"#N/A"},null,null,null,null,{"$error":"#N/A"},{"$error":"#N/A"},{"$error":"#N/A"}]
[null,null,0,{"$error":"#N/A"},null,null,null,null,{"$error":"#N/A"},{"$error":"#N/A"},{"$error":"#N/A"}]
[null,null,0,{"$error":"#N/A"},null,null,null,null,{"$error":"#N/A"},{"$error":"#N/A"},{"$error":"#N/A"}]
[null,null,0,{"$error":"#N/A"},null,null,null,null,{"$error":"#N/A"},{"$error":"#N/A"},{"$error":"#N/A"}]
[null,null,0,{"$error":"#N/A"},null,null,null,null,{"$error":"#N/A"},{"$error":"#N/A"},{"$error":"#N/A"}]
[null,null,0,{"$error":"#N/A"},null,null,null,null,{"$error":"#N/A"},{"$error":"#N/A"},{"$error":"#N/A"}]
[null,null,0,{"$error":"#N/A"},null,null,null,null,{"$error":"#N/A"},{"$error":"#N/A"},{"$error":"#N/A"}]
[null,null,0,{"$error":"#N/A"},null,null,null,null,{"$error":"#N/A"},{"$error":"#N/A"},{"$error":"#N/A"}]
[null,null,0,{"$error":"#N/A"},null,null,null,null,{"$error":"#N/A"},{"$error":"#N/A"},{"$error":"#N/A"}]
[null,null,0,{"$error":"#N/A"},null,null,null,null,{"$error":"#N/A"},{"$error":"#N/A"},{"$error":"#N/A"}]
[null,null,0,{"$error":"#N/A"},null,null,null,null,{"$error":"#N/A"},{"$error":"#N/A"},{"$error":"#N/A"}]
[null,null,0,{"$error":"#N/A"},null,null,null,null,{"$error":"#N/A"},{"$error":"#N/A"},{"$error":"#N/A"}]
[null,null,0,{"$error":"#N/A"},null,null,null,null,{"$error":"#N/A"},{"$error":"#N/A"},{"$error":"#N/A"}]
[null,null,0,{"$error":"#N/A"},null,null,null,null,{"$error":"#N/A"},{"$error":"#N/A"},{"$error":"#N/A"}]
[null,null,0,{"$error":"#N/A"},null,null,null,null,{"$error":"#N/A"},{"$error":"#N/A"},{"$error":"#N/A"}]
[null,null,0,{"$error":"#N/A"},null,null,null,null,{"$error":"#N/A"},{"$error":"#N/A"},{"$error":"#N/A"}]
[null,null,0,{"$error":"#N/A"},null,null,null,null,{"$error":"#N/A"},{"$error":"#N/A"},{"$error":"#N/A"}]
[null,null,0,{"$error":"#N/A"},null,null,null,null,{"$error":"#N/A"},{"$error":"#N/A"},{"$error":"#N/A"}]
[null,null,null,null,null,null,null,null,{"$f":"SUM(I43:I45)","v":4},{"$f":"IFERROR(I143/$I$143,0)","v":1},{"$f":"IFERROR(IF($G$12<>0,I143/$G$12,0),0)","v":0.66666666666666663}]
[]
[null,"Warning"]
[]
[null,null,null,null,{"$f":"SUM(E53:E66)","v":0}]
[]
[]
[]
[]
[]
[]
[]
[]
[]
[]
[]
[]
[]
[null,"WARNING","Tab Names","Long Desc",null,null,null,null,"Issue Count","Warning %","Total Issue %"]
[null,null,"Missing Meta Keywords","Pages found missing a meta keyword tag",null,null,null,null,1,{"$f":"I162/$I$262","v":0.5},{"$f":"IF($G$12<>0,I162/$G$12,0)","v":0.16666666666666666}]
[null,null,"302s","Redirect Found - Temporary - 302 Response Code",null,null,null,null,1,{"$f":"I163/$I$262","v":0.5},{"$f":"IF($G$12<>0,I163/$G$12,0)","v":0.16666666666666666}]
[null,null,0,{"$error":"#N/A"},null,null,null,null,{"$error":"#N/A"},{"$f":"I164/$I$262","v":{"$error":"#N/A"}},{"$f":"IF($G$12<>0,I164/$G$12,0)","v":{"$error":"#N/A"}}]
[null,null,0,{"$error":"#N/A"},null,null,null,null,{"$error":"#N/A"},{"$error":"#N/A"},{"$error":"#N/A"}]
[null,null,0,{"$error":"#N/A"},null,null,null,null,{"$error":"#N/A"},{"$error":"#N/A"},{"$error":"#N/A"}]
[null,null,0,{"$error":"#N/A"},null,null,null,null,{"$error":"#N/A"},{"$error":"#N/A"},{"$error":"#N/A"}]
[null,null,0,{"$error":"#N/A"},null,null,null,null,{"$error":"#N/A"},{"$f":"I168/$I$262","v":{"$error":"#N/A"}},{"$f":"IF($G$12<>0,I168/$G$12,0)","v":{"$error":"#N/A"}}]
[null,null,0,{"$error":"#N/A"},null,null,null,null,{"$error":"#N/A"},{"$error":"#N/A"},{"$error":"#N/A"}]
[null,null,0,{"$error":"#N/A"},null,null,null,null,{"$error":"#N/A"},{"$error":"#N/A"},{"$error":"#N/A"}]
[null,null,0,{"$error":"#N/A"},null,null,null,null,{"$error":"#N/A"},{"$error":"#N/A"},{"$error":"#N/A"}]
[null,null,0,{"$error":"#N/A"},null,null,null,null,{"$error":"#N/A"},{"$error":"#N/A"},{"$error":"#N/A"}]
[null,null,0,{"$error":"#N/A"},null,null,null,null,{"$error":"#N/A"},{"$error":"#N/A"},{"$error":"#N/A"}]
[null,null,0,{"$error":"#N/A"},null,null,null,null,{"$error":"#N/A"},{"$error":"#N/A"},{"$error":"#N/A"}]
[null,null,0,{"$error":"#N/A"},null,null,null,null,{"$error":"#N/A"},{"$error":"#N/A"},{"$error":"#N/A"}]
[null,null,0,{"$error":"#N/A"},null,null,null,null,{"$error":"#N/A"},{"$error":"#N/A"},{"$error":"#N/A"}]
[null,null,0,{"$error":"#N/A"},null,null,null,null,{"$error":"#N/A"},{"$error":"#N/A"},{"$error":"#N/A"}]
[null,null,0,{"$error":"#N/A"},null,null,null,null,{"$error":"#N/A"},{"$error":"#N/A"},{"$error":"#N/A"}]
[null,null,0,{"$error":"#N/A"},null,null,null,null,{"$error":"#N/A"},{"$error":"#N/A"},{"$error":"#N/A"}]
[null,null,0,{"$error":"#N/A"},null,null,null,null,{"$error":"#N/A"},{"$error":"#N/A"},{"$error":"#N/A"}]
[null,null,0,{"$error":"#N/A"},null,null,null,null,{"$error":"#N/A"},{"$error":"#N/A"},{"$error":"#N/A"}]
[null,null,0,{"$error":"#N/A"},null,null,null,null,{"$error":"#N/A"},{"$error":"#N/A"},{"$error":"#N/A"}]
[null,null,0,{"$error":"#N/A"},null,null,null,null,{"$error":"#N/A"},{"$error":"#N/A"},{"$error":"#N/A"}]
[null,null,0,{"$error":"#N/A"},null,null,null,null,{"$error":"#N/A"},{"$error":"#N/A"},{"$error":"#N/A"}]
[null,null,0,{"$error":"#N/A"},null,null,null,null,{"$error":"#N/A"},{"$error":"#N/A"},{"$error":"#N/A"}]
[null,null,0,{"$error":"#N/A"},null,null,null,null,{"$error":"#N/A"},{"$error":"#N/A"},{"$error":"#N/A"}]
[null,null,0,{"$error":"#N/A"},null,null,null,null,{"$error":"#N/A"},{"$error":"#N/A"},{"$error":"#N/A"}]
[null,null,0,{"$error":"#N/A"},null,null,null,null,{"$error":"#N/A"},{"$error":"#N/A"},{"$error":"#N/A"}]
[null,null,0,{"$error":"#N/A"},null,null,null,null,{"$error":"#N/A"},{"$error":"#N/A"},{"$error":"#N/A"}]
[null,null,0,{"$error":"#N/A"},null,null,null,null,{"$error":"#N/A"},{"$error":"#N/A"},{"$error":"#N/A"}]
[null,null,0,{"$error":"#N/A"},null,null,null,null,{"$error":"#N/A"},{"$error":"#N/A"},{"$error":"#N/A"}]
[null,null,0,{"$error":"#N/A"},null,null,null,null,{"$error":"#N/A"},{"$error":"#N/A"},{"$error":"#N/A"}]
[null,null,0,{"$error":"#N/A"},null,null,null,null,{"$error":"#N/A"},{"$error":"#N/A"},{"$error":"#N/A"}]
[null,null,0,{"$error":"#N/A"},null,null,null,null,{"$error":"#N/A"},{"$error":"#N/A"},{"$error":"#N/A"}]
[null,null,0,{"$error":"#N/A"},null,null,null,null,{"$error":"#N/A"},{"$error":"#N/A"},{"$error":"#N/A"}]
[null,null,0,{"$error":"#N/A"},null,null,null,null,{"$error":"#N/A"},{"$error":"#N/A"},{"$error":"#N/A"}]
[null,null,0,{"$error":"#N/A"},null,null,null,null,{"$error":"#N/A"},{"$error":"#N/A"},{"$error":"#N/A"}]
[null,null,0,{"$error":"#N/A"},null,null,null,null,{"$error":"#N/A"},{"$error":"#N/A"},{"$error":"#N/A"}]
[null,null,0,{"$error":"#N/A"},null,null,null,null,{"$error":"#N/A"},{"$error":"#N/A"},{"$error":"#N/A"}]
[null,null,0,{"$error":"#N/A"},null,null,null,null,{"$error":"#N/A"},{"$error":"#N/A"},{"$error":"#N/A"}]
[null,null,0,{"$error":"#N/A"},null,null,null,null,{"$error":"#N/A"},{"$error":"#N/A"},{"$error":"#N/A"}]
[null,null,0,{"$error":"#N/A"},null,null,null,null,{"$error":"#N/A"},{"$error":"#N/A"},{"$error":"#N/A"}]
[null,null,0,{"$error":"#N/A"},null,null,null,null,{"$error":"#N/A"},{"$error":"#N/A"},{"$error":"#N/A"}]
[null,null,0,{"$error":"#N/A"},null,null,null,null,{"$error":"#N/A"},{"$error":"#N/A"},{"$error":"#N/A"}]
[null,null,0,{"$error":"#N/A"},null,null,null,null,{"$error":"#N/A"},{"$error":"#N/A"},{"$error":"#N/A"}]
[null,null,0,{"$error":"#N/A"},null,null,null,null,{"$error":"#N/A"},{"$error":"#N/A"},{"$error":"#N/A"}]
[null,null,0,{"$error":"#N/A"},null,null,null,null,{"$error":"#N/A"},{"$error":"#N/A"},{"$error":"#N/A"}]
[null,null,0,{"$error":"#N/A"},null,null,null,null,{"$error":"#N/A"},{"$error":"#N/A"},{"$error":"#N/A"}]
[null,null,0,{"$error":"#N/A"},null,null,null,null,{"$error":"#N/A"},{"$error":"#N/A"},{"$error":"#N/A"}]
[null,null,0,{"$error":"#N/A"},null,null,null,null,{"$error":"#N/A"},{"$error":"#N/A"},{"$error":"#N/A"}]
[null,null,0,{"$error":"#N/A"},null,null,null,null,{"$error":"#N/A"},{"$error":"#N/A"},{"$error":"#N/A"}]
[null,null,0,{"$error":"#N/A"},null,null,null,null,{"$error":"#N/A"},{"$error":"#N/A"},{"$error":"#N/A"}]
[null,null,0,{"$error":"#N/A"},null,null,null,null,{"$error":"#N/A"},{"$error":"#N/A"},{"$error":"#N/A"}]
[null,null,0,{"$error":"#N/A"},null,null,null,null,{"$error":"#N/A"},{"$error":"#N/A"},{"$error":"#N/A"}]
[null,null,0,{"$error":"#N/A"},null,null,null,null,{"$error":"#N/A"},{"$error":"#N/A"},{"$error":"#N/A"}]
[null,null,0,{"$error":"#N/A"},null,null,null,null,{"$error":"#N/A"},{"$error":"#N/A"},{"$error":"#N/A"}]
[null,null,0,{"$error":"#N/A"},null,null,null,null,{"$error":"#N/A"},{"$error":"#N/A"},{"$error":"#N/A"}]
[null,null,0,{"$error":"#N/A"},null,null,null,null,{"$error":"#N/A"},{"$error":"#N/A"},{"$error":"#N/A"}]
[null,null,0,{"$error":"#N/A"},null,null,null,null,{"$error":"#N/A"},{"$error":"#N/A"},{"$error":"#N/A"}]
[null,null,0,{"$error":"#N/A"},null,null,null,null,{"$error":"#N/A"},{"$error":"#N/A"},{"$error":"#N/A"}]
[null,null,0,{"$error":"#N/A"},null,null,null,null,{"$error":"#N/A"},{"$error":"#N/A"},{"$error":"#N/A"}]
[null,null,0,{"$error":"#N/A"},null,null,null,null,{"$error":"#N/A"},{"$error":"#N/A"},{"$error":"#N/A"}]
[null,null,0,{"$error":"#N/A"},null,null,null,null,{"$error":"#N/A"},{"$error":"#N/A"},{"$error":"#N/A"}]
[null,null,0,{"$error":"#N/A"},null,null,null,null,{"$error":"#N/A"},{"$error":"#N/A"},{"$error":"#N/A"}]
[null,null,0,{"$error":"#N/A"},null,null,null,null,{"$error":"#N/A"},{"$error":"#N/A"},{"$error":"#N/A"}]
[null,null,0,{"$error":"#N/A"},null,null,null,null,{"$error":"#N/A"},{"$error":"#N/A"},{"$error":"#N/A"}]
[null,null,0,{"$error":"#N/A"},null,null,null,null,{"$error":"#N/A"},{"$error":"#N/A"},{"$f":"IF($G$12<>0,I227/$G$12,0)","v":{"$error":"#N/A"}}]
[null,null,0,{"$error":"#N/A"},null,null,null,null,{"$error":"#N/A"},{"$error":"#N/A"},{"$error":"#N/A"}]
[null,null,0,{"$error":"#N/A"},null,null,null,null,{"$error":"#N/A"},{"$error":"#N/A"},{"$error":"#N/A"}]
[null,null,0,{"$error":"#N/A"},null,null,null,null,{"$error":"#N/A"},{"$error":"#N/A"},{"$error":"#N/A"}]
[null,null,0,{"$error":"#N/A"},null,null,null,null,{"$error":"#N/A"},{"$error":"#N/A"},{"$error":"#N/A"}]
[null,null,0,{"$error":"#N/A"},null,null,null,null,{"$error":"#N/A"},{"$f":"I232/$I$262","v":{"$error":"#N/A"}},{"$error":"#N/A"}]
[null,null,0,{"$error":"#N/A"},null,null,null,null,{"$error":"#N/A"},{"$error":"#N/A"},{"$error":"#N/A"}]
[null,null,0,{"$error":"#N/A"},null,null,null,null,{"$error":"#N/A"},{"$error":"#N/A"},{"$error":"#N/A"}]
[null,null,0,{"$error":"#N/A"},null,null,null,null,{"$error":"#N/A"},{"$error":"#N/A"},{"$error":"#N/A"}]
[null,null,0,{"$error":"#N/A"},null,null,null,null,{"$error":"#N/A"},{"$error":"#N/A"},{"$error":"#N/A"}]
[null,null,0,{"$error":"#N/A"},null,null,null,null,{"$error":"#N/A"},{"$error":"#N/A"},{"$error":"#N/A"}]
[null,null,0,{"$error":"#N/A"},null,null,null,null,{"$error":"#N/A"},{"$error":"#N/A"},{"$error":"#N/A"}]
[null,null,0,{"$error":"#N/A"},null,null,null,null,{"$error":"#N/A"},{"$error":"#N/A"},{"$error":"#N/A"}]
[null,null,0,{"$error":"#N/A"},null,null,null,null,{"$error":"#N/A"},{"$error":"#N/A"},{"$error":"#N/A"}]
[null,null,0,{"$error":"#N/A"},null,null,null,null,{"$error":"#N/A"},{"$error":"#N/A"},{"$error":"#N/A"}]
[null,null,0,{"$error":"#N/A"},null,null,null,null,{"$error":"#N/A"},{"$error":"#N/A"},{"$error":"#N/A"}]
[null,null,0,{"$error":"#N/A"},null,null,null,null,{"$error":"#N/A"},{"$error":"#N/A"},{"$error":"#N/A"}]
[null,null,0,{"$error":"#N/A"},null,null,null,null,{"$error":"#N/A"},{"$error":"#N/A"},{"$error":"#N/A"}]
[null,null,0,{"$error":"#N/A"},null,null,null,null,{"$error":"#N/A"},{"$error":"#N/A"},{"$error":"#N/A"}]
[null,null,0,{"$error":"#N/A"},null,null,null,null,{"$error":"#N/A"},{"$error":"#N/A"},{"$error":"#N/A"}]
[null,null,0,{"$error":"#N/A"},null,null,null,null,{"$error":"#N/A"},{"$error":"#N/A"},{"$error":"#N/A"}]
[null,null,0,{"$error":"#N/A"},null,null,null,null,{"$error":"#N/A"},{"$error":"#N/A"},{"$error":"#N/A"}]
[null,null,0,{"$error":"#N/A"},null,null,null,null,{"$error":"#N/A"},{"$error":"#N/A"},{"$error":"#N/A"}]
[null,null,0,{"$error":"#N/A"},null,null,null,null,{"$error":"#N/A"},{"$error":"#N/A"},{"$error":"#N/A"}]
[null,null,0,{"$error":"#N/A"},null,null,null,null,{"$error":"#N/A"},{"$error":"#N/A"},{"$error":"#N/A"}]
[null,null,0,{"$error":"#N/A"},null,null,null,null,{"$error":"#N/A"},{"$error":"#N/A"},{"$error":"#N/A"}]
[null,null,0,{"$error":"#N/A"},null,null,null,null,{"$error":"#N/A"},{"$error":"#N/A"},{"$error":"#N/A"}]
[null,null,0,{"$error":"#N/A"},null,null,null,null,{"$error":"#N/A"},{"$error":"#N/A"},{"$error":"#N/A"}]
[null,null,0,{"$error":"#N/A"},null,null,null,null,{"$error":"#N/A"},{"$error":"#N/A"},{"$error":"#N/A"}]
[null,null,0,{"$error":"#N/A"},null,null,null,null,{"$error":"#N/A"},{"$error":"#N/A"},{"$error":"#N/A"}]
[null,null,0,{"$error":"#N/A"},null,null,null,null,{"$error":"#N/A"},{"$error":"#N/A"},{"$error":"#N/A"}]
[null,null,0,{"$error":"#N/A"},null,null,null,null,{"$error":"#N/A"},{"$error":"#N/A"},{"$error":"#N/A"}]
[null,null,0,{"$error":"#N/A"},null,null,null,null,{"$error":"#N/A"},{"$error":"#N/A"},{"$error":"#N/A"}]
[null,null,0,{"$error":"#N/A"},null,null,null,null,{"$error":"#N/A"},{"$error":"#N/A"},{"$error":"#N/A"}]
[null,null,0,{"$error":"#N/A"},null,null,null,null,{"$error":"#N/A"},{"$error":"#N/A"},{"$error":"#N/A"}]
[null,null,null,null,null,null,null,null,{"$f":"SUM(I162:I163)","v":2},{"$f":"IFERROR(I262/$I$262,0)","v":1},{"$f":"IFERROR(IF($G$12<>0,I262/$G$12,0),0)","v":0.33333333333333331}]
[]
[null,"Info"]
[]
[]
[]
[]
[]
[]
[]
[]
[]
[]
[]
[]
[null,null,"URL Underscores","URLs found using underscores",{"$error":"#REF!"}]
[]
[]
[null,"INFO","Tab Names","Long Desc",null,null,null,null,"Issue Count","Info %","Total Issue %"]
[null,null,0,{"$error":"#N/A"},null,null,null,null,{"$error":"#N/A"},{"$f":"I281/$I$381","v":{"$error":"#N/A"}},{"$f":"IF($G$12<>0,I281/$G$12,0)","v":{"$error":"#N/A"}}]
[null,null,0,{"$error":"#N/A"},null,null,null,null,{"$error":"#N/A"},{"$error":"#N/A"},{"$error":"#N/A"}]
[null,null,0,{"$error":"#N/A"},null,null,null,null,{"$error":"#N/A"},{"$error":"#N/A"},{"$error":"#N/A"}]
[null,null,0,{"$error":"#N/A"},null,null,null,null,{"$error":"#N/A"},{"$error":"#N/A"},{"$error":"#N/A"}]
[null,null,0,{"$error":"#N/A"},null,null,null,null,{"$error":"#N/A"},{"$error":"#N/A"},{"$error":"#N/A"}]
[null,null,0,{"$error":"#N/A"},null,null,null,null,{"$error":"#N/A"},{"$error":"#N/A"},{"$error":"#N/A"}]
[null,null,0,{"$error":"#N/A"},null,null,null,null,{"$error":"#N/A"},{"$f":"I287/$I$381","v":{"$error":"#N/A"}},{"$f":"IF($G$12<>0,I287/$G$12,0)","v":{"$error":"#N/A"}}]
[null,null,0,{"$error":"#N/A"},null,null,null,null,{"$error":"#N/A"},{"$error":"#N/A"},{"$error":"#N/A"}]
[null,null,0,{"$error":"#N/A"},null,null,null,null,{"$error":"#N/A"},{"$error":"#N/A"},{"$error":"#N/A"}]
[null,null,0,{"$error":"#N/A"},null,null,null,null,{"$error":"#N/A"},{"$error":"#N/A"},{"$error":"#N/A"}]
[null,null,0,{"$error":"#N/A"},null,null,null,null,{"$error":"#N/A"},{"$error":"#N/A"},{"$error":"#N/A"}]
[null,null,0,{"$error":"#N/A"},null,null,null,null,{"$error":"#N/A"},{"$error":"#N/A"},{"$error":"#N/A"}]
[null,null,0,{"$error":"#N/A"},null,null,null,null,{"$error":"#N/A"},{"$error":"#N/A"},{"$error":"#N/A"}]
[null,null,0,{"$error":"#N/A"},null,null,null,null,{"$error":"#N/A"},{"$error":"#N/A"},{"$error":"#N/A"}]
[null,null,0,{"$error":"#N/A"},null,null,null,null,{"$error":"#N/A"},{"$error":"#N/A"},{"$error":"#N/A"}]
[null,null,0,{"$error":"#N/A"},null,null,null,null,{"$error":"#N/A"},{"$error":"#N/A"},{"$error":"#N/A"}]
[null,null,0,{"$error":"#N/A"},null,null,null,null,{"$error":"#N/A"},{"$error":"#N/A"},{"$error":"#N/A"}]
[null,null,0,{"$error":"#N/A"},null,null,null,null,{"$error":"#N/A"},{"$error":"#N/A"},{"$error":"#N/A"}]
[null,null,0,{"$error":"#N/A"},null,null,null,null,{"$error":"#N/A"},{"$error":"#N/A"},{"$error":"#N/A"}]
[null,null,0,{"$error":"#N/A"},null,null,null,null,{"$error":"#N/A"},{"$error":"#N/A"},{"$error":"#N/A"}]
[null,null,0,{"$error":"#N/A"},null,null,null,null,{"$error":"#N/A"},{"$error":"#N/A"},{"$error":"#N/A"}]
[null,null,0,{"$error":"#N/A"},null,null,null,null,{"$error":"#N/A"},{"$error":"#N/A"},{"$error":"#N/A"}]
[null,null,0,{"$error":"#N/A"},null,null,null,null,{"$error":"#N/A"},{"$error":"#N/A"},{"$error":"#N/A"}]
[null,null,0,{"$error":"#N/A"},null,null,null,null,{"$error":"#N/A"},{"$error":"#N/A"},{"$error":"#N/A"}]
[null,null,0,{"$error":"#N/A"},null,null,null,null,{"$error":"#N/A"},{"$error":"#N/A"},{"$error":"#N/A"}]
[null,null,0,{"$error":"#N/A"},null,null,null,null,{"$error":"#N/A"},{"$error":"#N/A"},{"$error":"#N/A"}]
[null,null,0,{"$error":"#N/A"},null,null,null,null,{"$error":"#N/A"},{"$error":"#N/A"},{"$error":"#N/A"}]
[null,null,0,{"$error":"#N/A"},null,null,null,null,{"$error":"#N/A"},{"$error":"#N/A"},{"$error":"#N/A"}]
[null,null,0,{"$error":"#N/A"},null,null,null,null,{"$error":"#N/A"},{"$error":"#N/A"},{"$error":"#N/A"}]
[null,null,0,{"$error":"#N/A"},null,null,null,null,{"$error":"#N/A"},{"$error":"#N/A"},{"$error":"#N/A"}]
[null,null,0,{"$error":"#N/A"},null,null,null,null,{"$error":"#N/A"},{"$error":"#N/A"},{"$error":"#N/A"}]
[null,null,0,{"$error":"#N/A"},null,null,null,null,{"$error":"#N/A"},{"$error":"#N/A"},{"$error":"#N/A"}]
[null,null,0,{"$error":"#N/A"},null,null,null,null,{"$error":"#N/A"},{"$error":"#N/A"},{"$error":"#N/A"}]
[null,null,0,{"$error":"#N/A"},null,null,null,null,{"$error":"#N/A"},{"$error":"#N/A"},{"$error":"#N/A"}]
[null,null,0,{"$error":"#N/A"},null,null,null,null,{"$error":"#N/A"},{"$error":"#N/A"},{"$error":"#N/A"}]
[null,null,0,{"$error":"#N/A"},null,null,null,null,{"$error":"#N/A"},{"$error":"#N/A"},{"$error":"#N/A"}]
[null,null,0,{"$error":"#N/A"},null,null,null,null,{"$error":"#N/A"},{"$error":"#N/A"},{"$error":"#N/A"}]
[null,null,0,{"$error":"#N/A"},null,null,null,null,{"$error":"#N/A"},{"$error":"#N/A"},{"$error":"#N/A"}]
[null,null,0,{"$error":"#N/A"},null,null,null,null,{"$error":"#N/A"},{"$error":"#N/A"},{"$error":"#N/A"}]
[null,null,0,{"$error":"#N/A"},null,null,null,null,{"$error":"#N/A"},{"$error":"#N/A"},{"$error":"#N/A"}]
[null,null,0,{"$error":"#N/A"},null,null,null,null,{"$error":"#N/A"},{"$error":"#N/A"},{"$error":"#N/A"}]
[null,null,0,{"$error":"#N/A"},null,null,null,null,{"$error":"#N/A"},{"$error":"#N/A"},{"$error":"#N/A"}]
[null,null,0,{"$error":"#N/A"},null,null,null,null,{"$error":"#N/A"},{"$error":"#N/A"},{"$error":"#N/A"}]
[null,null,0,{"$error":"#N/A"},null,null,null,null,{"$error":"#N/A"},{"$error":"#N/A"},{"$error":"#N/A"}]
[null,null,0,{"$error":"#N/A"},null,null,null,null,{"$error":"#N/A"},{"$error":"#N/A"},{"$error":"#N/A"}]
[null,null,0,{"$error":"#N/A"},null,null,null,null,{"$error":"#N/A"},{"$error":"#N/A"},{"$error":"#N/A"}]
[null,null,0,{"$error":"#N/A"},null,null,null,null,{"$error":"#N/A"},{"$error":"#N/A"},{"$error":"#N/A"}]
[null,null,0,{"$error":"#N/A"},null,null,null,null,{"$error":"#N/A"},{"$error":"#N/A"},{"$error":"#N/A"}]
[null,null,0,{"$error":"#N/A"},null,null,null,null,{"$error":"#N/A"},{"$error":"#N/A"},{"$error":"#N/A"}]
[null,null,0,{"$error":"#N/A"},null,null,null,null,{"$error":"#N/A"},{"$error":"#N/A"},{"$error":"#N/A"}]
[null,null,0,{"$error":"#N/A"},null,null,null,null,{"$error":"#N/A"},{"$error":"#N/A"},{"$error":"#N/A"}]
[null,null,0,{"$error":"#N/A"},null,null,null,null,{"$error":"#N/A"},{"$error":"#N/A"},{"$error":"#N/A"}]
[null,null,0,{"$error":"#N/A"},null,null,null,null,{"$error":"#N/A"},{"$error":"#N/A"},{"$error":"#N/A"}]
[null,null,0,{"$error":"#N/A"},null,null,null,null,{"$error":"#N/A"},{"$error":"#N/A"},{"$error":"#N/A"}]
[null,null,0,{"$error":"#N/A"},null,null,null,null,{"$error":"#N/A"},{"$error":"#N/A"},{"$error":"#N/A"}]
[null,null,0,{"$error":"#N/A"},null,null,null,null,{"$error":"#N/A"},{"$error":"#N/A"},{"$error":"#N/A"}]
[null,null,0,{"$error":"#N/A"},null,null,null,null,{"$error":"#N/A"},{"$error":"#N/A"},{"$error":"#N/A"}]
[null,null,0,{"$error":"#N/A"},null,null,null,null,{"$error":"#N/A"},{"$error":"#N/A"},{"$error":"#N/A"}]
[null,null,0,{"$error":"#N/A"},null,null,null,null,{"$error":"#N/A"},{"$error":"#N/A"},{"$error":"#N/A"}]
[null,null,0,{"$error":"#N/A"},null,null,null,null,{"$error":"#N/A"},{"$error":"#N/A"},{"$error":"#N/A"}]
[null,null,0,{"$error":"#N/A"},null,null,null,null,{"$error":"#N/A"},{"$error":"#N/A"},{"$error":"#N/A"}]
[null,null,0,{"$error":"#N/A"},null,null,null,null,{"$error":"#N/A"},{"$error":"#N/A"},{"$error":"#N/A"}]
[null,null,0,{"$error":"#N/A"},null,null,null,null,{"$error":"#N/A"},{"$error":"#N/A"},{"$error":"#N/A"}]
[null,null,0,{"$error":"#N/A"},null,null,null,null,{"$error":"#N/A"},{"$error":"#N/A"},{"$error":"#N/A"}]
[null,null,0,{"$error":"#N/A"},null,null,null,null,{"$error":"#N/A"},{"$error":"#N/A"},{"$error":"#N/A"}]
[null,null,0,{"$error":"#N/A"},null,null,null,null,{"$error":"#N/A"},{"$f":"I346/$I$381","v":{"$error":"#N/A"}},{"$f":"IF($G$12<>0,I346/$G$12,0)","v":{"$error":"#N/A"}}]
[null,null,0,{"$error":"#N/A"},null,null,null,null,{"$error":"#N/A"},{"$error":"#N/A"},{"$error":"#N/A"}]
[null,null,0,{"$error":"#N/A"},null,null,null,null,{"$error":"#N/A"},{"$error":"#N/A"},{"$error":"#N/A"}]
[null,null,0,{"$error":"#N/A"},null,null,null,null,{"$error":"#N/A"},{"$error":"#N/A"},{"$error":"#N/A"}]
[null,null,0,{"$error":"#N/A"},null,null,null,null,{"$error":"#N/A"},{"$error":"#N/A"},{"$error":"#N/A"}]
[null,null,0,{"$error":"#N/A"},null,null,null,null,{"$error":"#N/A"},{"$error":"#N/A"},{"$error":"#N/A"}]
[null,null,0,{"$error":"#N/A"},null,null,null,null,{"$error":"#N/A"},{"$error":"#N/A"},{"$error":"#N/A"}]
[null,null,0,{"$error":"#N/A"},null,null,null,null,{"$error":"#N/A"},{"$error":"#N/A"},{"$error":"#N/A"}]
[null,null,0,{"$error":"#N/A"},null,null,null,null,{"$error":"#N/A"},{"$error":"#N/A"},{"$error":"#N/A"}]
[null,null,0,{"$error":"#N/A"},null,null,null,null,{"$error":"#N/A"},{"$error":"#N/A"},{"$error":"#N/A"}]
[null,null,0,{"$error":"#N/A"},null,null,null,null,{"$error":"#N/A"},{"$error":"#N/A"},{"$error":"#N/A"}]
[null,null,0,{"$error":"#N/A"},null,null,null,null,{"$error":"#N/A"},{"$error":"#N/A"},{"$error":"#N/A"}]
[null,null,0,{"$error":"#N/A"},null,null,null,null,{"$error":"#N/A"},{"$error":"#N/A"},{"$error":"#N/A"}]
[null,null,0,{"$error":"#N/A"},null,null,null,null,{"$error":"#N/A"},{"$error":"#N/A"},{"$error":"#N/A"}]
[null,null,0,{"$error":"#N/A"},null,null,null,null,{"$error":"#N/A"},{"$error":"#N/A"},{"$error":"#N/A"}]
[null,null,0,{"$error":"#N/A"},null,null,null,null,{"$error":"#N/A"},{"$error":"#N/A"},{"$error":"#N/A"}]
[null,null,0,{"$error":"#N/A"},null,null,null,null,{"$error":"#N/A"},{"$error":"#N/A"},{"$error":"#N/A"}]
[null,null,0,{"$error":"#N/A"},null,null,null,null,{"$error":"#N/A"},{"$error":"#N/A"},{"$error":"#N/A"}]
[null,null,0,{"$error":"#N/A"},null,null,null,null,{"$error":"#N/A"},{"$error":"#N/A"},{"$error":"#N/A"}]
[null,null,0,{"$error":"#N/A"},null,null,null,null,{"$error":"#N/A"},{"$error":"#N/A"},{"$error":"#N/A"}]
[null,null,0,{"$error":"#N/A"},null,null,null,null,{"$error":"#N/A"},{"$error":"#N/A"},{"$error":"#N/A"}]
[null,null,0,{"$error":"#N/A"},null,null,null,null,{"$error":"#N/A"},{"$error":"#N/A"},{"$error":"#N/A"}]
[null,null,0,{"$error":"#N/A"},null,null,null,null,{"$error":"#N/A"},{"$error":"#N/A"},{"$error":"#N/A"}]
[null,null,0,{"$error":"#N/A"},null,null,null,null,{"$error":"#N/A"},{"$error":"#N/A"},{"$error":"#N/A"}]
[null,null,0,{"$error":"#N/A"},null,null,null,null,{"$error":"#N/A"},{"$error":"#N/A"},{"$error":"#N/A"}]
[null,null,0,{"$error":"#N/A"},null,null,null,null,{"$error":"#N/A"},{"$error":"#N/A"},{"$error":"#N/A"}]
[null,null,0,{"$error":"#N/A"},null,null,null,null,{"$error":"#N/A"},{"$error":"#N/A"},{"$error":"#N/A"}]
[null,null,0,{"$error":"#N/A"},null,null,null,null,{"$error":"#N/A"},{"$error":"#N/A"},{"$error":"#N/A"}]
[null,null,0,{"$error":"#N/A"},null,null,null,null,{"$error":"#N/A"},{"$error":"#N/A"},{"$error":"#N/A"}]
[null,null,0,{"$error":"#N/A"},null,null,null,null,{"$error":"#N/A"},{"$error":"#N/A"},{"$error":"#N/A"}]
[null,null,0,{"$error":"#N/A"},null,null,null,null,{"$error":"#N/A"},{"$error":"#N/A"},{"$error":"#N/A"}]
[null,null,0,{"$error":"#N/A"},null,null,null,null,{"$error":"#N/A"},{"$error":"#N/A"},{"$error":"#N/A"}]
[null,null,0,{"$error":"#N/A"},null,null,null,null,{"$error":"#N/A"},{"$error":"#N/A"},{"$error":"#N/A"}]
[null,null,0,{"$error":"#N/A"},null,null,null,null,{"$error":"#N/A"},{"$error":"#N/A"},{"$error":"#N/A"}]
[null,null,0,{"$error":"#N/A"},null,null,null,null,{"$error":"#N/A"},{"$error":"#N/A"},{"$error":"#N/A"}]
[null,null,null,null,null,null,null,null,{"$f":"IFERROR(SUM(I281:I286),0)","v":0},{"$f":"IFERROR(I381/$I$381,0)","v":0},{"$f":"IFERROR(IF($G$12<>0,I381/$G$12,0),0)","v":0}]

{"sheet":"Missing H1 Tag","index":1,"n_rows":11,"n_cols":3,"rows_kept":11,"cut":false,"hidden":false,"merged":[]}
[]
[]
[null,"Missing H1 Tag"]
[]
[null,"Pages found missing an H1 tag"]
[null,"Total Count: 2"]
[]
[null,"Issue Severity: Critical"]
[null,"URL","H1 Tag"]
[null,"http://www.fandango.com/default.aspx","Missing"]
[null,"http://www.fandango.com/","Missing"]

{"sheet":"Missing Title Tags","index":2,"n_rows":10,"n_cols":3,"rows_kept":10,"cut":false,"hidden":false,"merged":[]}
[]
[]
[null,"Missing Title Tags"]
[]
[null,"Pages found missing a title tag"]
[null,"Total Count: 1"]
[]
[null,"Issue Severity: Critical"]
[null,"URL","Title Tag"]
[null,"http://www.fandango.com/default.aspx","Missing"]

{"sheet":"Missing Meta Description","index":3,"n_rows":10,"n_cols":3,"rows_kept":10,"cut":false,"hidden":false,"merged":[]}
[]
[]
[null,"Missing Meta Description"]
[]
[null,"Pages found missing a meta description tag"]
[null,"Total Count: 1"]
[]
[null,"Issue Severity: Critical"]
[null,"URL","Meta Description Tag"]
[null,"http://www.fandango.com/default.aspx","Missing"]

{"sheet":"Missing Meta Keywords","index":4,"n_rows":10,"n_cols":3,"rows_kept":10,"cut":false,"hidden":false,"merged":[]}
[]
[]
[null,"Missing Meta Keywords"]
[]
[null,"Pages found missing a meta keyword tag"]
[null,"Total Count: 1"]
[]
[null,"Issue Severity: Warning"]
[null,"URL","Meta Keywords Tag"]
[null,"http://www.fandango.com/default.aspx","Missing"]

{"sheet":"302s","index":5,"n_rows":10,"n_cols":4,"rows_kept":10,"cut":false,"hidden":false,"merged":[]}
[]
[]
[null,"302s"]
[]
[null,"Redirect Found - Temporary - 302 Response Code"]
[null,"Total Count: 1"]
[]
[null,"Issue Severity: Warning"]
[null,"URL","Redirected to URL","Response Code"]
[null,"http://www.fandango.com/default.aspx","http://www.fandango.com/iphonesplash",302]

{"sheet":"Remaining Urls_1","index":6,"n_rows":9,"n_cols":11,"rows_kept":9,"cut":false,"hidden":false,"merged":[]}
[]
[]
[null,"Remaining Urls_1"]
[]
[null,"URLs without issues"]
[null,"Total Count: 1"]
[]
[]
[null,"PageID","URL","Title","Meta Description","Meta Keyword","H1","Page Size","Response Code","Response Time","Comments"]

{"sheet":"Spidered Urls_1","index":7,"n_rows":9,"n_cols":11,"rows_kept":9,"cut":false,"hidden":false,"merged":[]}
[]
[]
[null,"Spidered Urls_1"]
[]
[null,"Spidered URLs (raw data)"]
[null,"Total Count: 2"]
[]
[]
[null,"PageID","URL","Title","Meta Description","Meta Keyword","H1","Page Size","Response Code","Response Time","Comments"]

{"sheet":"Report Data","index":8,"n_rows":100,"n_cols":26,"rows_kept":100,"cut":false,"hidden":false,"merged":[[6,10,6,12],[11,10,11,11]]}
[]
[]
[null,"User Agent:","Mozilla/5.0 (compatible; Googlebot/2.1; +http://www.google.com/bot.html)"]
[]
[]
[]
[null,null,null,null,null,null,null,null,null,null,"Issues / Non-Issues",null,null,null,"Severity","%"]
[null,"Site Architecture Analysis Summary",null,null,null,null,null,null,null,null,"Issues",{"$f":"L10-L9","v":2},{"$f":"L8/L10","v":1},null,"Critical",{"$f":"Summary!G9/Summary!$G$12","v":0.66666666666666663}]
[null,null,null,null,null,null,null,null,null,null,"Non-Issues (\"Remaining Urls\")",0,{"$f":"L9/L10","v":0},null,"Warning",{"$f":"Summary!G10/Summary!$G$12","v":0.33333333333333331}]
[null,null,null,null,null,null,null,null,null,null,"Spidered (\"Spidered Urls\")",2,null,null,"Info",{"$f":"Summary!G11/Summary!$G$12","v":0}]
[]
[null,"Short Desc","Long Desc","Number","Priority",null,null,null,null,null,"Issues Only",null,null,null,"CRITICAL",null,"WARNING",null,"INFO"]
[null,"Missing Title Tags","Pages found missing a title tag",1,"Critical",null,null,null,null,null,"Missing Title Tags",1,null,null,"Missing Title Tags",null,"Missing Meta Keywords"]
[null,"Spidered Urls_1","Spidered URLs (raw data)",2,"",null,null,null,null,null,"Missing Meta Keywords",1,null,null,"Missing H1 Tag",null,"302s"]
[null,"Remaining Urls_1","URLs without issues",0,"",null,null,null,null,null,"Missing H1 Tag",2,null,null,"Missing Meta Description"]
[null,"Missing Meta Keywords","Pages found missing a meta keyword tag",1,"Warning",null,null,null,null,null,"302s",1]
[null,"Missing H1 Tag","Pages found missing an H1 tag",2,"Critical",null,null,null,null,null,"Missing Meta Description",1]
[null,"302s","Redirect Found - Temporary - 302 Response Code",1,"Warning"]
[null,"Missing Meta Description","Pages found missing a meta description tag",1,"Critical"]
[]
[]
[]
[]
[]
[]
[]
[]
[]
[]
[]
[]
[]
[]
[]
[]
[]
[]
[]
[]
[]
[]
[]
[]
[]
[]
[]
[]
[]
[]
[]
[]
[]
[]
[]
[]
[]
[]
[]
[]
[]
[]
[]
[]
[]
[]
[]
[]
[]
[]
[]
[]
[]
[]
[]
[]
[]
[]
[]
[]
[]
[]
[]
[]
[]
[]
[]
[]
[]
[]
[]
[]
[]
[]
[]
[]
[]
[]
[]
[]
[null,null,null,null,null,null,null,null,null,null,null,null,null,null,null,null,null,null,null,null,null,null,null,null,null,false]